Workbook

Sheet Sheet1
E1: جرد وحركة الــكافتيريا | J1: المنصرف ( الـمبيعــات ) | K1: الرصيد | O1: المضاف ( الـمشتريات ) | P1: الرصيد
A2: كود الصنف | B2: اسم الصنف | C2: الرصيد الافتتاحى | D2: الوارد(مشتريات) | E2: منصرف( مبيعات ) | F2: الرصيد المتبقى | I2: التاريخ | J2: اسم الصنف | K2: الكمية المنصرفة | L2: امين المخزن | N2: التاريخ | O2: اسم الصنف | P2: الكمية الواردة | Q2: امين المخزن
A3: 1 | B3: كولا | C3: 14 | D3: 0 | E3: 2 | F3: 12 | G3: =F3*4.5 -> 54 | I3: 2021-08-06 | J3: كولا | K3: 2 | L3: saadrafic | N3: 2021-08-08 | O3: ينسون بكت | P3: 8 | Q3: saadrafic
A4: 2 | B4: شوبيس | C4: 15 | D4: 0 | E4: 0 | F4: 15 | G4: =F4*4.5 -> 67.5 | I4: 2021-08-06 | J4: سفن | K4: 5 | L4: saadrafic
A5: 3 | B5: سفن | C5: 18 | D5: 0 | E5: 5 | F5: 13 | G5: =F5*4.8 -> 62.4 | I5: 2021-08-06 | J5: مياه صغيره | K5: 18 | L5: saadrafic
A6: 4 | B6: بريل | C6: 19 | D6: 0 | E6: 0 | F6: 19 | G6: =F6*6.25 -> 118.75 | I6: 2021-08-06 | J6: مياه الكبيره | K6: 12 | L6: saadrafic
A7: 5 | B7: بيبسي | C7: 2 | D7: 0 | E7: 0 | F7: 2 | G7: =F7*4.5 -> 9 | I7: 2021-08-06 | J7: قهوة | K7: 7 | L7: saadrafic
A8: 6 | B8: مياه صغيره | C8: 29 | D8: 0 | E8: 18 | F8: 11 | G8: =F8*1.5 -> 16.5 | I8: 2021-08-06 | J8: عصير | K8: 7 | L8: saadrafic
A9: 7 | B9: مياه الكبيره | C9: 29 | D9: 0 | E9: 14 | F9: 15 | G9: =F9*2.5 -> 37.5 | I9: 2021-08-06 | J9: براد شاي | K9: 2 | L9: saadrafic
A10: 8 | B10: كرتونه مياه كبيره | C10: 6 | D10: 0 | E10: 0 | F10: 6 | G10: =F10*10 -> 60 | I10: 2021-08-08 | J10: مياه الكبيره | K10: 2 | L10: saadrafic
A11: 9 | B11: بن فاتح عادي | C11: 3 | D11: 0 | E11: 0 | F11: 3 | G11: =F11*15 -> 45 | I11: 2021-08-08 | J11: نسكافيه | K11: 3 | L11: saadrafic
A12: 10 | B12: بن فاتح علبه | C12: 1 | D12: 0 | E12: 0 | F12: 1 | G12: =F12*65 -> 65 | I12: 2021-08-08 | J12: شاي بكت أحمر | K12: 1 | L12: saadrafic
A13: 11 | B13: بن غامق | C13: 1 | D13: 0 | E13: 0 | F13: 1 | G13: =F13*65 -> 65
A14: 12 | B14: بن فاتح محوج | C14: 1 | D14: 0 | E14: 0 | F14: 1 | G14: =F14*65 -> 65
A15: 13 | B15: بن فرنساوي | C15: 1 | D15: 0 | E15: 0 | F15: 1 | G15: =F15*65 -> 65
A16: 14 | B16: بن بندق | C16: 1 | D16: 0 | E16: 0 | F16: 1 | G16: =F16*65 -> 65
A17: 15 | B17: شاي بكت أحمر | C17: 22 | D17: 0 | E17: 1 | F17: 21 | G17: =F17*0.4 -> 8.4
A18: 16 | B18: شاي بكت أخضر | C18: 100 | D18: 0 | E18: 0 | F18: 100 | G18: =F18*0.55 -> 55
A19: 17 | B19: ينسون بكت | C19: 74 | D19: 8 | E19: 0 | F19: 82 | G19: =F19*1.7 -> 139.4
A20: 18 | B20: نعناع بكت | C20: 47 | E20: 0 | F20: 47 | G20: =F20*1.7 -> 79.9
A21: 19 | B21: قرفه بالزنجبيل | C21: 46 | E21: 0 | F21: 46 | G21: =F21*0.8 -> 36.8
A22: 20 | B22: كركديه | C22: 20 | E22: 0 | F22: 20 | G22: =F22*0.8 -> 16
A23: 21 | B23: نسكافيه | C23: 35 | E23: 3 | F23: 32 | G23: =F23*1 -> 32
A24: 22 | B24: كابتشينو | C24: 15 | E24: 0 | F24: 15 | G24: =F24*3 -> 45
A25: 23 | B25: سحلب | C25: 3 | E25: 0 | F25: 3 | G25: =F25*15 -> 45
A26: 24 | B26: شاي أحمر زده | C26: 2 | E26: 0 | F26: 2 | G26: =F26*25 -> 50
A27: 25 | B27: شاي اخضر سايب | C27: 1 | E27: 0 | F27: 1 | G27: =F27*20 -> 20
A28: 26 | B28: شاي أحمر عادي سايب | C28: 1 | E28: 0 | F28: 1 | G28: =F28*20 -> 20
A29: 27 | B29: كاكاو | C29: 1 | E29: 0 | F29: 1 | G29: =F29*15 -> 15
A30: 28 | B30: ليمون | C30: 2 | E30: 0 | F30: 2
A31: 29 | B31: قهوة | C31: 20 | E31: 7 | F31: 13
A32: 30 | B32: عصير | C32: 30 | E32: 7 | F32: 23
A33: 31 | B33: براد شاي | C33: 100 | E33: 2 | F33: 98

Sheet Sheet2

Sheet Sheet3
